fUSD/lending_fUSD_20250522
["ID","MTS","AMOUNT","RATE_DAILY","PERIOD"]
[362000488,1747931450323,-762.56,0.0003315,5]
[362000489,1747931450333,-420.0,0.0003315,5]
[362000490,1747931450342,-420.0,0.0003315,5]
[362000491,1747931450352,-420.0,0.0003315,5]
[362000492,1747931450361,-420.0,0.0003315,5]
[362000493,1747931450370,-420.0,0.0003315,5]
[362000494,1747931450380,-420.0,0.0003315,5]
[362000495,1747931450390,-21745.64,0.0003315,5]
[362000496,1747931450400,-420.0,0.0003315,5]
[362000497,1747931450410,-420.0,0.0003315,5]
[362000498,1747931450419,-596.79,0.0003315,5]
[362000499,1747931450429,-420.0,0.0003315,5]
[362000500,1747931450438,-420.0,0.0003315,5]
[362000501,1747931450448,-1037.2,0.0003315,5]
[362000502,1747931450458,-420.0,0.0003315,5]
[362000503,1747931450467,-420.0,0.0003315,5]
[362000504,1747931450477,-420.0,0.0003315,5]
[362000505,1747931450486,-420.0,0.0003315,5]
[362000506,1747931450496,-1555.15,0.0003315,5]
[362000507,1747931450505,-606.3,0.0003315,5]
[362000508,1747931450515,-546.96,0.0003315,5]
[362000509,1747931450524,-420.0,0.0003315,5]
[362000510,1747931450533,-420.0,0.0003315,5]
[362000511,1747931450543,-1289.19,0.0003315,5]
[362000512,1747931450553,-552.58,0.0003315,5]
[362000513,1747931450564,-6483.5,0.0003315,5]
[362000514,1747931450580,-605.77,0.0003315,5]
[362000515,1747931450590,-5256.49,0.0003315,5]
[362000516,1747931450600,-463.29,0.0003315,5]
[362000517,1747931450610,-420.0,0.0003315,5]
[362000518,1747931450620,-662.69,0.0003315,5]
[362000519,1747931450630,-332.24562499,0.0003315,5]
[362000520,1747931450640,-740.11,0.0003315,5]
[362000521,1747931450650,-420.0,0.0003315,5]
[362000522,1747931450659,-635.28,0.0003315,5]
[362000523,1747931450670,-2289.19,0.0003315,5]
[362000524,1747931450680,-420.0,0.0003315,5]
[362000525,1747931450690,-420.0,0.0003315,5]
[362000526,1747931450699,-420.0,0.0003315,5]
[362000527,1747931450709,-737.66,0.0003315,5]
[362000528,1747931450719,-496.29,0.0003315,5]
[362000529,1747931450729,-420.0,0.0003315,5]
[362000530,1747931450738,-2025.73,0.0003315,5]
[362000531,1747931450748,-420.0,0.0003315,5]
[362000532,1747931450759,-505.78,0.0003315,5]
[362000533,1747931450769,-420.0,0.0003315,5]
[362000534,1747931450779,-420.0,0.0003315,5]
[362000535,1747931450790,-3803.22,0.0003315,5]
[362000536,1747931450800,-587.96,0.0003315,5]
[362000537,1747931450810,-1780.67,0.0003315,5]
[362000538,1747931450828,-420.0,0.0003315,5]
[362000539,1747931450838,-688.2,0.0003315,5]
[362000540,1747931450848,-420.0,0.0003315,5]
[362000541,1747931450858,-420.0,0.0003315,5]
[362000542,1747931450867,-999.56,0.0003315,5]
[362000543,1747931450878,-516.84,0.0003315,5]
[362000544,1747931450893,-1296.98,0.0003315,5]
[362000545,1747931450912,-420.0,0.0003315,5]
[362000546,1747931450933,-628.79,0.0003315,5]
[362000547,1747931450950,-1056.71,0.0003315,5]
[362000548,1747931450962,-420.0,0.0003315,5]
[362000549,1747931450975,-475.18,0.0003315,5]
[362000550,1747931450986,-420.0,0.0003315,5]
[362000551,1747931450996,-502.41,0.0003315,5]
[362000552,1747931451007,-420.0,0.0003315,5]
[362000553,1747931451017,-420.0,0.0003315,5]
[362000554,1747931451027,-573.31,0.0003315,5]
[362000555,1747931451041,-687.88,0.0003315,5]
[362000556,1747931451051,-351.04858849,0.0003315,5]
[362000557,1747931451061,-420.0,0.0003315,5]
[362000558,1747931451076,-857.16,0.0003315,5]
[362000559,1747931451086,-420.0,0.0003315,5]
[362000560,1747931451095,-753.03,0.0003315,5]
[362000561,1747931451105,-1681.66,0.0003315,5]
[362000562,1747931451114,-420.0,0.0003315,5]
[362000563,1747931451124,-497.2,0.0003315,5]
[362000564,1747931451135,-420.0,0.0003315,5]
[362000565,1747931451144,-531.49,0.0003315,5]
[362000566,1747931451154,-420.0,0.0003315,5]
[362000567,1747931451164,-420.0,0.0003315,5]
[362000568,1747931451174,-742.17,0.0003315,5]
[362000569,1747931451184,-578.47,0.0003315,5]
[362000570,1747931451193,-491.02,0.0003315,5]
[362000571,1747931451203,-905.74,0.0003315,5]
[362000572,1747931451213,-420.0,0.0003315,5]
[362000573,1747931451222,-441.11613224,0.0003315,5]
[362000574,1747931451232,-420.0,0.0003315,5]
[362000575,1747931451242,-2624.74,0.0003315,5]
[362000576,1747931451251,-420.0,0.0003315,5]
[362000577,1747931451261,-1060.1,0.0003315,5]
[362000578,1747931451271,-420.0,0.0003315,5]
[362000579,1747931451281,-420.0,0.0003315,5]
[362000580,1747931451290,-1107.43,0.0003315,5]
[362000581,1747931451300,-806.38,0.0003315,5]
[362000582,1747931451309,-814.15,0.0003315,5]
[362000583,1747931451322,-420.0,0.0003315,5]
[362000584,1747931451332,-920.55,0.0003315,5]
[362000585,1747931451342,-424.94,0.0003315,5]
[362000586,1747931451351,-726.83,0.0003315,5]
[362000587,1747931451361,-420.0,0.0003315,5]
[362000588,1747931451371,-1184.97,0.0003315,5]
[362000589,1747931451380,-811.99,0.0003315,5]
[362000590,1747931451390,-1585.1,0.0003315,2]
[362000591,1747931451399,-420.0,0.0003315,5]
[362000592,1747931451409,-420.0,0.0003315,5]
[362000593,1747931451419,-501.89,0.0003315,5]
[362000594,1747931451429,-976.09,0.0003315,5]
[362000595,1747931451438,-420.0,0.0003315,5]
[362000596,1747931451448,-420.0,0.0003315,5]
[362000597,1747931451459,-420.0,0.0003315,5]
[362000598,1747931451468,-1205.54,0.0003315,5]
[362000599,1747931451478,-496.53,0.0003315,5]
[362000600,1747931451488,-420.0,0.0003315,5]
[362000601,1747931451499,-702.85,0.0003315,5]
[362000602,1747931451509,-420.0,0.0003315,5]
[362000603,1747931451519,-420.0,0.0003315,5]
[362000604,1747931451529,-420.0,0.0003315,5]
[362000605,1747931451539,-975.31,0.0003315,5]
[362000606,1747931451549,-874.16,0.0003315,5]
[362000607,1747931451559,-420.0,0.0003315,5]
[362000608,1747931451573,-517.68096005,0.0003315,5]
[362000609,1747931451583,-1050.04,0.0003315,5]
[362000610,1747931451592,-1056.84,0.0003315,5]
[362000611,1747931451602,-3199.06,0.0003315,5]
[362000612,1747931451611,-696.47,0.0003315,5]
[362000613,1747931451621,-823.49,0.0003315,5]
[362000614,1747931451631,-420.0,0.0003315,5]
[362000615,1747931451641,-1070.32,0.0003315,5]
[362000616,1747931451651,-1043.66,0.0003315,5]
[362000617,1747931451660,-420.0,0.0003315,5]
[362000618,1747931451669,-619.44,0.0003315,5]
[362000619,1747931451679,-420.0,0.0003315,5]
[362000620,1747931451689,-571.58,0.0003315,5]
[362000621,1747931451699,-420.0,0.0003315,5]
[362000622,1747931451708,-282.51555024,0.0003315,5]
[362000623,1747931451718,-420.0,0.0003315,5]
[362000624,1747931451728,-420.0,0.0003315,5]
[362000625,1747931451738,-420.0,0.0003315,5]
[362000626,1747931451748,-420.0,0.0003315,5]
[362000627,1747931451758,-713.84,0.0003315,5]
[362000628,1747931451767,-922.04,0.0003315,5]
[362000629,1747931451777,-7568.19,0.0003315,2]
[362000630,1747931451787,-4056.98,0.0003315,5]
[362000631,1747931451796,-571.81,0.0003315,5]
[362000632,1747931451806,-508.04,0.0003315,5]
[362000633,1747931451816,-736.06,0.0003315,5]
[362000634,1747931451828,-595.56,0.0003315,5]
[362000635,1747931451838,-1053.94,0.0003315,5]
[362000636,1747931451847,-420.0,0.0003315,5]
[362000637,1747931451857,-420.0,0.0003315,5]
[362000638,1747931451866,-885.36,0.0003315,5]
[362000639,1747931451877,-599.32,0.0003315,5]
[362000640,1747931451890,-420.0,0.0003315,5]
[362000641,1747931451899,-468.58572607,0.0003315,5]
[362000642,1747931452256,-420.0,0.0003315,5]
[362000643,1747931452272,-1631.92,0.0003315,5]
[362000644,1747931452281,-3108.09,0.0003315,5]
[362000645,1747931452291,-765.45,0.0003315,5]
[362000646,1747931452301,-420.0,0.0003315,5]
[362000647,1747931452310,-420.0,0.0003315,5]
[362000648,1747931452323,-420.0,0.0003315,5]
[362000649,1747931452332,-469.99,0.0003315,5]
[362000650,1747931452343,-10294.5,0.0003315,5]
[362000651,1747931452352,-420.0,0.0003315,5]
[362000652,1747931452362,-420.0,0.0003315,5]
[362000653,1747931452372,-444.9,0.0003315,5]
[362000654,1747931452382,-576.31,0.0003315,5]
[362000655,1747931452392,-737.94,0.0003315,5]
[362000656,1747931452401,-527.64,0.0003315,5]
[362000657,1747931452411,-771.94,0.0003315,5]
[362000658,1747931452421,-910.63,0.0003315,5]
[362000659,1747931452431,-854.71,0.0003315,5]
[362000660,1747931452440,-730.92,0.0003315,5]
[362000661,1747931452450,-420.0,0.0003315,5]
[362000662,1747931452460,-420.0,0.0003315,5]
[362000663,1747931452470,-420.0,0.0003315,5]
[362000664,1747931452480,-699.27,0.0003315,5]
[362000665,1747931452490,-420.0,0.0003315,5]
[362000666,1747931452500,-420.0,0.0003315,5]
[362000667,1747931452510,-420.0,0.0003315,5]
[362000668,1747931452519,-420.0,0.0003315,5]
[362000669,1747931452529,-495.83430314,0.0003315,5]
[362000670,1747931452540,-1059.24,0.0003315,5]
[362000671,1747931452550,-420.0,0.0003315,5]
[362000672,1747931452560,-600.36,0.0003315,5]
[362000673,1747931452573,-420.0,0.0003315,5]
[362000674,1747931452582,-2359.56,0.0003315,5]
[362000675,1747931452592,-713.12,0.0003315,5]
[362000676,1747931452601,-420.0,0.0003315,5]
[362000677,1747931452611,-420.0,0.0003315,5]
[362000678,1747931452620,-420.0,0.0003315,5]
[362000679,1747931452630,-322.41,0.00033165,2]
[362000680,1747931452640,-201.21314462,0.00033169,28]
[362000681,1747931452649,-500.0,0.00033173,5]
[362000682,1747931452659,-500.0,0.00033173,5]
[362000683,1747931452669,-500.0,0.00033173,5]
[362000684,1747931452678,-500.0,0.00033173,5]
[362000685,1747931452688,-500.0,0.00033173,5]
[362000686,1747931452697,-500.0,0.00033173,5]
[362000687,1747931452706,-500.0,0.00033173,5]
[362000688,1747931452717,-172.82376719,0.00033173,5]
[362000689,1747931452726,-994.17068085,0.00033177,12]
[362000690,1747931452736,-1000.0,0.000332,2]
[362000691,1747931452745,-237.0,0.000332,2]
[362000692,1747931452755,-375.0,0.000332,2]
[362000693,1747931452765,-766.0,0.000332,2]
[362000694,1747931452774,-843.84191387,0.0003324,2]
[362000695,1747931452784,-7245.12264966,0.00033248,2]
[362000696,1747931452795,-152.51,0.00033249,2]
[362000697,1747931452805,-500.0,0.0003326,2]
[362000698,1747931452814,-633.63,0.00033262,5]
[362000699,1747931452828,-1000.0,0.000333,2]
[362000700,1747931452837,-150.0,0.00033351,2]
[362000701,1747931452846,-1000.0,0.000334,2]
[362000702,1747931452856,-1000.0,0.00033421,5]
[362000703,1747931452866,-500.0,0.00033421,5]
[362000704,1747931452876,-633.63,0.00033423,5]
[362000705,1747931452889,-633.63,0.00033423,5]
[362000706,1747931452899,-21866.0,0.00033423,2]
[362000707,1747931452909,-152.959474,0.00033424,5]
[362000708,1747931452919,-150.657276,0.00033424,5]
[362000709,1747931452929,-507.46,0.00033424,5]
[362000710,1747931452939,-420.0,0.00033424,5]
[362000711,1747931452949,-420.0,0.00033424,5]
[362000712,1747931452959,-559.88,0.00033424,5]
[362000713,1747931452971,-420.0,0.00033424,5]
[362000714,1747931452981,-420.0,0.00033424,5]
[362000715,1747931452991,-574.32,0.00033424,5]
[362000716,1747931453000,-441.89,0.00033424,5]
[362000717,1747931453011,-420.0,0.00033424,5]
[362000718,1747931453020,-420.0,0.00033424,5]
[362000719,1747931453030,-510.38,0.00033424,5]
[362000720,1747931453040,-420.0,0.00033424,5]
[362000721,1747931453050,-420.0,0.00033424,5]
[362000722,1747931453060,-420.0,0.00033424,5]
[362000723,1747931453071,-458.21,0.00033424,5]
[362000724,1747931453081,-420.0,0.00033424,5]
[362000725,1747931453091,-420.0,0.00033424,5]
[362000726,1747931453101,-420.0,0.00033424,5]
[362000727,1747931453111,-420.0,0.00033424,5]
[362000728,1747931453121,-571.52,0.00033424,5]
[362000729,1747931453130,-420.0,0.00033424,5]
[362000730,1747931453139,-420.0,0.00033424,5]
[362000731,1747931453149,-420.0,0.00033424,5]
[362000732,1747931453159,-585.25,0.00033424,5]
[362000733,1747931453170,-420.0,0.00033424,5]
[362000734,1747931453179,-420.0,0.00033424,5]
[362000735,1747931453189,-420.0,0.00033424,5]
[362000736,1747931453199,-420.0,0.00033424,5]
[362000737,1747931453209,-420.0,0.00033424,5]
[362000738,1747931453219,-420.0,0.00033424,5]
[362000739,1747931453229,-266.9013345,0.00033424,5]
[362000740,1747931453239,-517.26,0.00033424,5]
[362000741,1747931453248,-420.0,0.00033424,5]
[362000742,1747931453258,-420.0,0.00033424,5]
[362000743,1747931453268,-619.68,0.00033424,5]
[362000744,1747931453277,-420.0,0.00033424,5]
[362000745,1747931453287,-420.0,0.00033424,5]
[362000746,1747931453297,-420.0,0.00033424,5]
[362000747,1747931453307,-420.0,0.00033424,5]
[362000748,1747931453317,-420.0,0.00033424,5]
[362000749,1747931453329,-420.0,0.00033424,5]
[362000750,1747931453338,-478.76,0.00033424,5]
[362000751,1747931453348,-420.0,0.00033424,5]
[362000752,1747931453359,-420.0,0.00033424,5]
[362000753,1747931453368,-420.0,0.00033424,5]
[362000754,1747931453378,-420.0,0.00033424,5]
[362000755,1747931453388,-338.16,0.00033424,5]
[362000756,1747931453398,-574.65,0.00033424,5]
[362000757,1747931453408,-420.0,0.00033424,5]
[362000758,1747931453418,-643.55,0.00033424,5]
[362000759,1747931453428,-481.48,0.00033424,5]
[362000760,1747931453439,-420.0,0.00033424,5]
[362000761,1747931453450,-420.0,0.00033424,5]
[362000762,1747931453461,-517.5,0.00033424,5]
[362000763,1747931453472,-420.0,0.00033424,5]
[362000764,1747931453482,-426.67,0.00033424,5]
[362000765,1747931453492,-420.0,0.00033424,5]
[362000766,1747931453502,-364.41587814,0.00033424,5]
[362000767,1747931453512,-699.94,0.00033424,5]
[362000768,1747931453521,-465.55,0.00033424,5]
[362000769,1747931453532,-420.0,0.00033424,5]
[362000770,1747931453542,-420.0,0.00033424,5]
[362000771,1747931453551,-420.0,0.00033424,5]
[362000772,1747931453562,-420.0,0.00033424,5]
[362000773,1747931453578,-420.0,0.00033424,5]
[362000774,1747931453588,-420.0,0.00033424,5]
[362000775,1747931453597,-420.0,0.00033424,5]
[362000776,1747931453607,-420.0,0.00033424,5]
[362000777,1747931453617,-420.0,0.00033424,5]
[362000778,1747931453626,-487.29,0.00033424,5]
[362000779,1747931453635,-420.0,0.00033424,5]
[362000780,1747931453645,-420.0,0.00033424,5]
[362000781,1747931453654,-619.65,0.00033424,5]
[362000782,1747931453664,-420.0,0.00033424,5]
[362000783,1747931453673,-420.0,0.00033424,5]
[362000784,1747931453683,-420.0,0.00033424,5]
[362000785,1747931453692,-420.0,0.00033424,5]
[362000786,1747931453701,-522.01996569,0.00033424,5]
[362000787,1747931453711,-420.0,0.00033424,5]
[362000788,1747931453720,-420.0,0.00033424,5]
[362000789,1747931453730,-424.6,0.00033424,5]
[362000790,1747931453740,-420.0,0.00033424,5]
[362000791,1747931453749,-420.0,0.00033424,5]
[362000792,1747931453759,-420.0,0.00033424,5]
[362000793,1747931453769,-449.24,0.00033424,5]
[362000794,1747931453778,-420.0,0.00033424,5]
[362000795,1747931453788,-420.0,0.00033424,5]
[362000796,1747931453797,-420.0,0.00033424,5]
[362000797,1747931453807,-607.36,0.00033424,5]
[362000798,1747931453816,-300.0,0.00033424,5]
[362000799,1747931453831,-420.0,0.00033424,5]
[362000800,1747931453841,-420.0,0.00033424,5]
[362000801,1747931453850,-476.01,0.00033424,5]
[362000802,1747931453860,-521.61,0.00033424,5]
[362000803,1747931453870,-810.06,0.00033424,5]
[362000804,1747931453879,-685.18,0.00033424,5]
[362000805,1747931453890,-420.0,0.00033424,5]
[362000806,1747931453900,-573.3,0.00033424,5]
[362000807,1747931453910,-420.0,0.00033424,5]
[362000808,1747931453919,-467.73594898,0.00033424,5]
[362000809,1747931453930,-556.25,0.00033424,5]
[362000810,1747931453940,-420.0,0.00033424,5]
[362000811,1747931453950,-420.0,0.00033424,5]
[362000812,1747931453960,-163.69372539,0.00033424,5]
[362000813,1747931453970,-420.0,0.00033424,5]
[362000814,1747931453980,-420.0,0.00033424,5]
[362000815,1747931453990,-420.0,0.00033424,5]
[362000816,1747931454000,-460.5,0.00033424,5]
[362000817,1747931454009,-420.0,0.00033424,5]
[362000818,1747931454019,-420.0,0.00033424,5]
[362000819,1747931454029,-420.0,0.00033424,5]
[362000820,1747931454038,-420.0,0.00033424,5]
[362000821,1747931454048,-501.11,0.00033424,5]
[362000822,1747931454057,-420.0,0.00033424,5]
[362000823,1747931454069,-420.0,0.00033424,5]
[362000824,1747931454080,-420.0,0.00033424,5]
[362000825,1747931454090,-420.0,0.00033424,5]
[362000826,1747931454100,-420.0,0.00033424,5]
[362000827,1747931454109,-420.0,0.00033424,5]
[362000828,1747931454119,-420.0,0.00033424,5]
[362000829,1747931454128,-420.0,0.00033424,5]
[362000830,1747931454138,-420.0,0.00033424,5]
[362000831,1747931454147,-420.0,0.00033424,5]
[362000832,1747931454157,-420.0,0.00033424,5]
[362000833,1747931454167,-420.0,0.00033424,5]
[362000834,1747931454176,-500.0,0.00033424,5]
[362000835,1747931454185,-420.0,0.00033424,5]
[362000836,1747931454195,-420.0,0.00033424,5]
[362000837,1747931454204,-420.0,0.00033424,5]
[362000838,1747931454213,-420.0,0.00033424,5]
[362000839,1747931454223,-420.0,0.00033424,5]
[362000840,1747931454232,-420.0,0.00033424,5]
[362000841,1747931454241,-420.0,0.00033424,5]
[362000842,1747931454251,-420.0,0.00033424,5]
[362000843,1747931454260,-420.0,0.00033424,5]
[362000844,1747931454270,-420.0,0.00033424,5]
[362000845,1747931454279,-465.67,0.00033424,5]
[362000846,1747931454288,-420.0,0.00033424,5]
[362000847,1747931454298,-695.35,0.00033424,5]
[362000848,1747931454307,-420.0,0.00033424,5]
[362000849,1747931454316,-484.01,0.00033424,5]
[362000850,1747931454329,-420.0,0.00033424,5]
[362000851,1747931454338,-991.58,0.00033424,5]
[362000852,1747931454348,-420.0,0.00033424,5]
[362000853,1747931454358,-507.82,0.00033424,5]
[362000854,1747931454367,-420.0,0.00033424,5]
[362000855,1747931454376,-420.0,0.00033424,5]
[362000856,1747931454386,-575.67,0.00033424,5]
[362000857,1747931454395,-839.03,0.00033424,5]
[362000858,1747931454405,-420.0,0.00033424,5]
[362000859,1747931454415,-838.5,0.00033424,5]
[362000860,1747931454424,-435.15,0.00033424,5]
[362000861,1747931454434,-420.0,0.00033424,5]
[362000862,1747931454443,-505.58,0.00033424,5]
[362000863,1747931454453,-463.34,0.00033424,5]
[362000864,1747931454462,-420.0,0.00033424,5]
[362000865,1747931454472,-678.74,0.00033424,5]
[362000866,1747931454482,-305.35561,0.00033424,5]
[362000867,1747931454491,-805.85,0.00033424,5]
[362000868,1747931454501,-501.68,0.00033424,5]
[362000869,1747931454510,-420.0,0.00033424,5]
[362000870,1747931454520,-598.02,0.00033424,5]
[362000871,1747931454529,-420.0,0.00033424,5]
[362000872,1747931454538,-309.43106135,0.00033424,5]
[362000873,1747931454548,-420.0,0.00033424,5]
[362000874,1747931454557,-204.74195909,0.00033424,5]
[362000875,1747931454567,-420.0,0.00033424,5]
[362000876,1747931454585,-420.0,0.00033424,5]
[362000877,1747931454596,-598.09,0.00033424,5]
[362000878,1747931454605,-420.0,0.00033424,5]
[362000879,1747931454615,-420.0,0.00033424,5]
[362000880,1747931454625,-420.0,0.00033424,5]
[362000881,1747931454634,-420.0,0.00033424,5]
[362000882,1747931454645,-420.0,0.00033424,5]
[362000883,1747931454742,-549.6,0.00033424,5]
[362000884,1747931454753,-429.94,0.00033424,5]
[362000885,1747931454762,-420.0,0.00033424,5]
[362000886,1747931454772,-638.92,0.00033424,5]
[362000887,1747931454781,-420.0,0.00033424,5]
[362000888,1747931454790,-420.0,0.00033424,5]
[362000889,1747931454800,-420.0,0.00033424,5]
[362000890,1747931454810,-420.0,0.00033424,5]
[362000891,1747931454820,-420.0,0.00033424,5]
[362000892,1747931454833,-515.55,0.00033424,5]
[362000893,1747931454842,-420.0,0.00033424,5]
[362000894,1747931454852,-507.64,0.00033424,5]
[362000895,1747931454862,-629.74,0.00033424,5]
[362000896,1747931454871,-453.68,0.00033424,5]
[362000897,1747931454880,-288.20449519,0.00033424,5]
[362000898,1747931454890,-1000.0,0.00033424,5]
[362000899,1747931454900,-420.0,0.00033424,5]
[362000900,1747931454909,-532.8,0.00033424,5]
[362000901,1747931454918,-420.0,0.00033424,5]
[362000902,1747931454928,-431.81,0.00033424,5]
[362000903,1747931454938,-524.58,0.00033424,5]
[362000904,1747931454947,-420.0,0.00033424,5]
[362000905,1747931454957,-441.47,0.00033424,5]
[362000906,1747931454969,-420.0,0.00033424,5]
[362000907,1747931454980,-420.0,0.00033424,5]
[362000908,1747931454989,-633.62,0.00033424,5]
[362000909,1747931454999,-703.97,0.00033424,5]
[362000910,1747931455008,-475.2,0.00033424,5]
[362000911,1747931455017,-420.0,0.00033424,5]
[362000912,1747931455026,-420.0,0.00033424,5]
[362000913,1747931455035,-420.0,0.00033424,5]
[362000914,1747931455044,-420.0,0.00033424,5]
[362000915,1747931455054,-420.0,0.00033424,5]
[362000916,1747931455063,-420.0,0.00033424,5]
[362000917,1747931455079,-420.0,0.00033424,5]
[362000918,1747931455088,-439.52,0.00033424,5]
[362000919,1747931455097,-608.36,0.00033424,5]
[362000920,1747931455107,-420.0,0.00033424,5]
[362000921,1747931455116,-420.0,0.00033424,5]
[362000922,1747931455125,-420.0,0.00033424,5]
[362000923,1747931455134,-420.0,0.00033424,5]
[362000924,1747931455144,-596.33,0.00033424,5]
[362000925,1747931455154,-548.86,0.00033424,5]
[362000926,1747931455163,-709.09,0.00033424,5]
[362000927,1747931455173,-420.0,0.00033424,5]
[362000928,1747931455182,-420.0,0.00033424,5]
[362000929,1747931455191,-511.66,0.00033424,5]
[362000930,1747931455201,-420.0,0.00033424,5]
[362000931,1747931455211,-675.17,0.00033424,5]
[362000932,1747931455220,-677.8,0.00033424,5]
[362000933,1747931455230,-530.1,0.00033424,5]
[362000934,1747931455239,-519.59,0.00033424,5]
[362000935,1747931455248,-420.0,0.00033424,5]
[362000936,1747931455257,-1248.53,0.00033424,5]
[362000937,1747931455267,-521.3,0.00033424,5]
[362000938,1747931455276,-420.0,0.00033424,5]
[362000939,1747931455286,-923.09,0.00033424,5]
[362000940,1747931455295,-420.0,0.00033424,5]
[362000941,1747931455305,-487.65,0.00033424,5]
[362000942,1747931455314,-205.62159035,0.00033424,5]
[362000943,1747931455330,-420.0,0.00033424,5]
[362000944,1747931455339,-420.0,0.00033424,5]
[362000945,1747931455348,-420.0,0.00033424,5]
[362000946,1747931455357,-420.0,0.00033424,5]
[362000947,1747931455367,-476.75,0.00033424,5]
[362000948,1747931455376,-420.0,0.00033424,5]
[362000949,1747931455385,-655.31,0.00033424,5]
[362000950,1747931455394,-420.0,0.00033424,5]
[362000951,1747931455403,-420.0,0.00033424,5]
[362000952,1747931455413,-840.14,0.00033424,5]
[362000953,1747931455422,-494.65792069,0.00033424,5]
[362000954,1747931455431,-485.85,0.00033424,5]
[362000955,1747931455441,-675.46,0.00033424,5]
[362000956,1747931455451,-420.0,0.00033424,5]
[362000957,1747931455460,-420.0,0.00033424,5]
[362000958,1747931455469,-687.97,0.00033424,5]
[362000959,1747931455478,-420.0,0.00033424,5]
[362000960,1747931455487,-1180.69,0.00033424,5]
[362000961,1747931455496,-775.08,0.00033424,5]
[362000962,1747931455506,-420.0,0.00033424,5]
[362000963,1747931455515,-420.0,0.00033424,5]
[362000964,1747931455524,-433.49,0.00033424,5]
[362000965,1747931455534,-420.0,0.00033424,5]
[362000966,1747931455544,-619.1,0.00033424,5]
[362000967,1747931455554,-643.05,0.00033424,5]
[362000968,1747931455563,-420.0,0.00033424,5]
[362000969,1747931455577,-420.0,0.00033424,5]
[362000970,1747931455587,-420.0,0.00033424,5]
[362000971,1747931455597,-558.78,0.00033424,5]
[362000972,1747931455606,-420.0,0.00033424,5]
[362000973,1747931455617,-536.83,0.00033424,5]
[362000974,1747931455626,-420.0,0.00033424,5]
[362000975,1747931455635,-638.2,0.00033424,5]
[362000976,1747931455644,-420.0,0.00033424,5]
[362000977,1747931455653,-461.0,0.00033424,5]
[362000978,1747931455662,-420.0,0.00033424,5]
[362000979,1747931455672,-420.0,0.00033424,5]
[362000980,1747931455681,-420.0,0.00033424,5]
[362000981,1747931455690,-541.23,0.00033424,5]
[362000982,1747931455700,-420.0,0.00033424,5]
[362000983,1747931455709,-420.0,0.00033424,5]
[362000984,1747931455718,-420.0,0.00033424,5]
[362000985,1747931455727,-500.39,0.00033424,5]
[362000986,1747931455736,-420.0,0.00033424,5]
[362000987,1747931455745,-601.08,0.00033424,5]